Cogmind - Beta 10.2 @@@ ROGUE MODE // 2021.06.25 @ 21:34:06 Player: ILikeVoltron Result: Destroyed by G-47 Trooper with Particle Gun Performance ------------- Evolutions (2) 1000 Regions Visited (6) 1200 Robots Destroyed (30) 150 Value Destroyed (649) 649 Prototype IDs (3) 60 Alien Tech Used (0) 0 Bonus (39) 39 TOTAL SCORE: 3098 Bonus ------- Follower Combat Kills 39 Cogmind --------- Core Integrity 0/550 Matter 277/300 Energy 98/100 System Corruption 0% Temperature Cool (102) Movement Core (100) Ox1 Location -8/Storage Parts ------- > --- POWER (1) -------- (None) > --- PROPULSION (4) --- (None) > --- UTILITY (2) ------ Signal Interpreter > --- WEAPON (4) ------- Improved Grenade Launcher > --- INVENTORY (4) ---- Ion Engine Large Storage Unit Improved Signal Interpreter Peak State ------------ > --- POWER ------------ Light Nuclear Core > --- PROPULSION ------- Improved Hover Unit > --- UTILITY ---------- Signal Interpreter > --- WEAPON ----------- Advanced Beam Rifle Advanced Beam Rifle Scythe Axe > --- INVENTORY -------- Ion Engine Large Storage Unit Improved Signal Interpreter Improved Grenade Launcher [Rating: 20] Favorites ----------- Power Improved Ion Engine Engine Improved Ion Engine Power Core Light Nuclear Core Propulsion Aluminum Leg Leg Aluminum Leg Hover Unit Improved Hover Unit Utility Large Storage Unit Device Improved Trap Extractor Storage Large Storage Unit Processor Targeting Computer Weapon Light Cannon Energy Gun Electrolaser Ballistic Gun Light Assault Rifle Ballistic Cannon Light Cannon Launcher Improved Grenade Launcher Slashing Weapon Scythe Special Melee Weapon Improved Datajack Build | -11 -10 -10 -9 -9 -8 -8 ------- Run | Scr Mat Min Mat Min Mat Sto Slots Evolved 4 | . . . 2 . 2 . Power . | . . . . . . . Propulsion 2 | . . . 2 . . . Utility . | . . . . . . . Weapon 2 | . . . . . 2 . Parts Attached 33 | . 7 6 10 . 6 4 Power 3 | . 1 . . . 1 1 Engine 2 | . 1 . . . 1 . Core 1 | . . . . . . 1 Reactor . | . . . . . . . Propulsion 6 | . 1 . 4 . 1 . Treads . | . . . . . . . Leg 5 | . 1 . 4 . . . Wheel . | . . . . . . . Hover 1 | . . . . . 1 . Flight . | . . . . . . . Utility 9 | . 3 3 2 . 1 . Device 3 | . . 2 1 . . . Storage 3 | . 3 . . . . . Processor 3 | . . 1 1 . 1 . Hackware . | . . . . . . . Protection . | . . . . . . . Artifact . | . . . . . . . Weapon 15 | . 2 3 4 . 3 3 Energy Gun 8 | . . 3 2 . 1 2 Energy Cannon . | . . . . . . . Ballistic Gun . | . . . . . . . Ballistic Cannon 2 | . 2 . . . . . Launcher 2 | . . . 1 . . 1 Special Weapon . | . . . . . . . Impact Weapon . | . . . . . . . Slashing Weapon 2 | . . . . . 2 . Piercing Weapon . | . . . . . . . Special Melee Weapon 1 | . . . 1 . . . Unidentified Prototypes 1 | . . . . . . 1 Parts Lost 16 | . . . 10 . . 6 Power 1 | . . . . . . 1 Propulsion 7 | . . . 6 . . 1 Utility . | . . . . . . . Weapon 8 | . . . 4 . . 4 Highest Loss Streak 10 | . . . 10 . . 5 Average Slot Usage (%) 88 | . 93 99 88 . 33 47 Engine 12 | . 14 14 9 . 6 4 Leg 25 | . 28 28 37 . . . Device 3 | . . 4 4 . . . Storage 16 | . 23 19 10 . . . Processor 3 | . . 3 5 . 7 9 Energy Gun 11 | . . 17 18 . 3 7 Ballistic Gun 2 | . 8 . . . . . Ballistic Cannon 9 | . 18 10 . . . . Slashing Weapon 1 | . . . . . 10 14 Naked Turns 37 | . . . 14 19 4 . Heaviest Build 33 | 11 33 33 30 . 13 13 Greatest Support 40 | 20 20 20 40 3 8 8 Greatest Overweight (x) 6 | . 1 1 6 . 1 1 Average Overweight (x) . | . . 1 . . . . Largest Inventory Capacity 10 | 6 10 10 10 4 4 4 Average Capacity 8 | 6 8 10 9 4 4 4 Most Carried 10 | 6 10 10 10 4 4 4 Average Carried 8 | 6 8 9 9 4 3 3 Final Capacity 10 | 6 10 10 4 4 4 4 Final Carried 10 | 6 10 10 4 4 3 3 Class Distribution -------------------- 87% | Mutant 12% | Scavenger-Mutant Dominant Class ---------------- Mutant | -10/Materials Mutant | -10/Mines Scavenger-Mutant | -9/Materials Mutant | -9/Mines Mutant | -8/Materials Mutant | -8/Storage Resources | -11 -10 -10 -9 -9 -8 -8 ----------- Run | Scr Mat Min Mat Min Mat Sto Matter Collected 904 | 212 203 303 67 . . 119 Remotely . | . . . . . . . Salvage Created 1013 | 56 210 108 335 . . 304 Parts 58 | 1 14 13 17 . . 13 Haulers Intercepted 1 | . . . . . . 1 Recyclers Shooed . | . . . . . . . Parts Field Recycled . | . . . . . . . Retrieved Matter . | . . . . . . . Parts Self-Destructed . | . . . . . . . Prevented . | . . . . . . . Kills | -11 -10 -10 -9 -9 -8 -8 ------- Run | Scr Mat Min Mat Min Mat Sto Combat Hostiles Destroyed 17 | . 5 3 6 . . 3 Melee 2 | . . . . . . 2 Guns 10 | . 4 . 6 . . . Cannons 4 | . 1 3 . . . . AOE 1 | . . . . . . 1 Classes Destroyed 8 | 1 4 1 1 . . 1 Worker 4 | . 1 3 . . . . Builder 2 | . . 1 . . . 1 Hauler 1 | . . . . . . 1 Recycler 3 | 1 . . 1 . . 1 Operator 1 | . 1 . . . . . Watcher 2 | . . . 2 . . . Swarmer 4 | . 1 3 . . . . Grunt 13 | . 4 . 6 . . 3 Best Kill Streak 8 | 1 4 5 8 . . 4 Combat Bots Only 6 | . 4 3 6 . . 2 Max Kills in Single Turn 1 | 1 1 1 1 . . 1 Gunslinging . | . . . . . . . Exploded 1 | . . . . . . 1 Melee 1 | . . . . . . 1 Uniques/NPCs Destroyed . | . . . . . . . Combat | -11 -10 -10 -9 -9 -8 -8 -------- Run | Scr Mat Min Mat Min Mat Sto Damage Taken 2543 | . 300 218 975 . 14 1036 Core 1044 | . 73 47 362 . . 562 Absorbed by Shields . | . . . . . . . Core Remaining (%) 53 | 100 . 52 . 9 . . Volleys Fired 77 | 6 26 15 24 . . 6 Largest 2 | 2 2 2 2 . . 2 Hottest 122 | 40 70 113 119 . . 122 Shots Fired 141 | 12 52 30 38 . . 9 Gun 105 | 12 40 8 37 . . 8 Cannon 34 | . 12 22 . . . . Launcher 2 | . . . 1 . . 1 Special . | . . . . . . . Kinetic 86 | 12 52 22 . . . . Thermal 49 | . . 4 37 . . 8 Explosive 2 | . . . 1 . . 1 Electromagnetic 4 | . . 4 . . . . Robot Hit Streak 12 | 4 12 4 9 . . 4 Robot Miss Streak 6 | 1 3 6 4 . . 1 Penetration Max . | . . . . . . . Secondary Targets 3 | . 1 . 2 . . . Max Gunslinging Chain 1 | . 1 . 1 . . . Shots Hit Robots 94 | 8 35 11 27 . . 13 Core Hits 44 | 2 15 7 13 . . 7 Critical Hits 2 | . 2 . . . . . Critical Kills 2 | . 2 . . . . . Critical Parts Destroyed . | . . . . . . . Melee Attacks 9 | . . . 1 . . 8 Impact . | . . . . . . . Slashing 8 | . . . . . . 8 Piercing . | . . . . . . . Sneak Attacks 1 | . . . . . . 1 Combat Hostiles . | . . . . . . . Follow-up Attacks . | . . . . . . . Damage Inflicted 1680 | 61 341 256 474 . . 548 Guns 868 | 61 242 72 373 . . 120 Cannons 282 | . 98 184 . . . . Explosions 267 | . . . 95 . . 172 Melee 256 | . . . . . . 256 Ramming 7 | . 1 . 6 . . . Kinetic 585 | 61 340 184 . . . . Thermal 525 | . . 32 373 . . 120 Explosive 267 | . . . 95 . . 172 Electromagnetic 40 | . . 40 . . . . Impact . | . . . . . . . Slashing 256 | . . . . . . 256 Piercing . | . . . . . . . Highest Corruption 2 | . . 1 2 2 . . Average Corruption 1 | . . 1 2 2 . . Corruption Purged . | . . . . . . . Effects 4 | . . 1 2 1 . . Message Errors 1 | . . . . 1 . . Energy Discharges 1 | . . . 1 . . . Data Loss (minor) 1 | . . 1 . . . . Targeting Errors 1 | . . . 1 . . . Overload Shots . | . . . . . . . Overflow Damage 6 | . . . . . . 6 Projectiles . | . . . . . . . Explosions 6 | . . . . . . 6 Melee . | . . . . . . . Knockbacks 8 | . 4 4 . . . . Impact . | . . . . . . . Kinetic 8 | . 4 4 . . . . Secondary . | . . . . . . . Self-Inflicted Damage 25 | . . . 2 . . 23 Shots 1 | . . . . . . 1 Rammed 3 | . . . 3 . . . Targets Rammed 4 | . 1 . 3 . . . Kicked 1 | . 1 . . . . . Crushed . | . . . . . . . Highest Temperature 555 | . 48 108 555 . . 210 Average Temperature 122 | . 14 32 211 . . 121 Received Heat Transfer 1005 | . 105 . 441 . 9 450 Effects 9 | . . . 9 . . . Shutdowns 1 | . . . 1 . . . Energy Bleed 2 | . . . 2 . . . Interference 2 | . . . 2 . . . Matter Decay 1 | . . . 1 . . . Short Circuit 2 | . . . 2 . . . Damage (core) 1 | . . . 1 . . . Siege Activations . | . . . . . . . Robots Corrupted . | . . . . . . . Combat Hostiles . | . . . . . . . Parts Fried . | . . . . . . . Impact Corruptions . | . . . . . . . Robots Melted . | . . . . . . . Combat Hostiles . | . . . . . . . Parts Melted 3 | . . . 2 . . 1 Heat Transferred 1184 | . . 74 888 . . 222 Parts Sabotaged . | . . . . . . . Parts Stolen . | . . . . . . . Parts Stripped . | . . . . . . . Power Chain Reactions . | . . . . . . . Missiles Intercepted . | . . . . . . . Alert | -11 -10 -10 -9 -9 -8 -8 ------- Run | Scr Mat Min Mat Min Mat Sto Peak Influence 193 | 5 148 99 193 42 31 90 Initial 42 | . 3 19 27 42 16 13 Average 79 | 1 108 75 80 42 20 50 Maximum Alert Level . | . . . . . . . Low Security (%) 100 | 100 100 100 100 100 100 100 Level 1 . | . . . . . . . Level 2 . | . . . . . . . Level 3 . | . . . . . . . Level 4 . | . . . . . . . Level 5 . | . . . . . . . High Security . | . . . . . . . Max Security . | . . . . . . . Squads Dispatched 6 | . 1 . 3 . 1 1 Investigation 3 | . . . 2 . . 1 Extermination . | . . . . . . . Reinforcement 3 | . 1 . 1 . 1 . Assault . | . . . . . . . Garrison . | . . . . . . . Intercept . | . . . . . . . Construction Impeded . | . . . . . . . Haulers Reinforced . | . . . . . . . Stealth | -11 -10 -10 -9 -9 -8 -8 --------- Run | Scr Mat Min Mat Min Mat Sto Distress Signals 4 | . 2 . 1 . . 1 Communications Jammed . | . . . . . . . Distress Signals . | . . . . . . . Times Spotted 48 | . 9 6 18 2 3 10 Peak Tracking Total 8 | . 5 3 8 3 4 8 Tactical Retreats 2 | . 1 . . . . 1 Traps | -11 -10 -10 -9 -9 -8 -8 ------- Run | Scr Mat Min Mat Min Mat Sto Traps Triggered 3 | . . 1 1 . . 1 Indirectly . | . . . . . . . Trap Hack Attempts . | . . . . . . . Triggered . | . . . . . . . Disarmed . | . . . . . . . Reprogrammed . | . . . . . . . Reused . | . . . . . . . Traps Extracted . | . . . . . . . Installed . | . . . . . . . Triggered . | . . . . . . . Machines | -11 -10 -10 -9 -9 -8 -8 ---------- Run | Scr Mat Min Mat Min Mat Sto Machines Disabled 2 | . . . 1 . . 1 Max in Single Turn 1 | . . . 1 . . 1 Garrison Access 1 | . . . . . . 1 Machines Sabotaged . | . . . . . . . Garrisons Compromised . | . . . . . . . Overloaded Fab Kills . | . . . . . . . Fab Network Shutdowns . | . . . . . . . Hacking | -11 -10 -10 -9 -9 -8 -8 --------- Run | Scr Mat Min Mat Min Mat Sto Machines Accessed 7 | . 2 1 3 . . 1 Terminals 4 | . 2 . 2 . . . Fabricators . | . . . . . . . Repair Stations . | . . . . . . . Recycling Units . | . . . . . . . Scanalyzers 1 | . . . 1 . . . Garrison Access 1 | . . . . . . 1 Total Hacks 18 | . 6 1 8 . . 3 Successful 10 | . 2 1 6 . . 1 Failed 8 | . 4 . 2 . . 2 Catastrophic . | . . . . . . . Database Lockouts . | . . . . . . . Manual . | . . . . . . . Terminals 12 | . 6 . 6 . . . Fabricators . | . . . . . . . Repair Stations . | . . . . . . . Recycling Units . | . . . . . . . Scanalyzers 2 | . . . 2 . . . Garrison Access 3 | . . . . . . 3 Terminal Hacks 7 | . 2 1 4 . . . Prototype ID Bank 1 | . 1 . . . . . Open Door 1 | . . 1 . . . . Terminal Index 1 | . . . 1 . . . Alert Level 1 | . . . 1 . . . Locate Traps 1 | . . . 1 . . . Transport Status 1 | . 1 . . . . . Zone Layout 1 | . . . 1 . . . Fabricator Hacks . | . . . . . . . Repair Station Hacks . | . . . . . . . Recycling Unit Hacks . | . . . . . . . Scanalyzer 2 | . . . 2 . . . Insert Component 1 | . . . 1 . . . Analyze 1 | . . . 1 . . . Garrison Access Hacks 1 | . . . . . . 1 Seal Access 1 | . . . . . . 1 Unauthorized Hacks . | . . . . . . . Terminals . | . . . . . . . Fabricators . | . . . . . . . Repair Stations . | . . . . . . . Recycling Units . | . . . . . . . Scanalyzers . | . . . . . . . Garrison Access . | . . . . . . . Data Cores Recovered . | . . . . . . . Used . | . . . . . . . Hacking Detections 5 | . 2 . 3 . . . Full Trace Events 1 | . . . 1 . . . Feedback Events . | . . . . . . . Feedback Blocked . | . . . . . . . Robot Schematics Acquired . | . . . . . . . Robots Built . | . . . . . . . Matter . | . . . . . . . Time . | . . . . . . . Total Robot Build Rating . | . . . . . . . Part Schematics Acquired 1 | . . . 1 . . . Parts Built . | . . . . . . . Matter . | . . . . . . . Time . | . . . . . . . Total Part Build Rating . | . . . . . . . Parts Repaired . | . . . . . . . Time . | . . . . . . . Parts Recycled . | . . . . . . . Recycled Matter . | . . . . . . . Retrieved Matter . | . . . . . . . Retrieved Components . | . . . . . . . Parts Scanalyzed 1 | . . . 1 . . . Part Schematics Acquired 1 | . . . 1 . . . Parts Damaged . | . . . . . . . Bothacking | -11 -10 -10 -9 -9 -8 -8 ------------ Run | Scr Mat Min Mat Min Mat Sto Used RIF Installer . | . . . . . . . Robots Hacked 1 | . . . 1 . . . Non-combat . | . . . . . . . Combat 1 | . . . 1 . . . Robot Hacks Applied 1 | . . . 1 . . . parse_system 1 | . . . 1 . . . Relay Couplers Released . | . . . . . . . Robots Rewired . | . . . . . . . Allies Hacked . | . . . . . . . Hacks Repelled . | . . . . . . . Allies | -11 -10 -10 -9 -9 -8 -8 -------- Run | Scr Mat Min Mat Min Mat Sto Total Allies 3 | . . 3 . . . . Largest Group 3 | . . 3 3 . . . Highest-Rated Group 40 | . . 40 40 . . . Highest-Rated Ally 16 | . . 16 16 . . . Total Orders . | . . . . . . . Ally Attacks 20 | . . 10 10 . . . Total Damage 154 | . . 70 84 . . . Kills 3 | . . 2 1 . . . Allies Corrupted . | . . . . . . . Allies Melted . | . . . . . . . Intel | -11 -10 -10 -9 -9 -8 -8 ------- Run | Scr Mat Min Mat Min Mat Sto Robot Analysis Total . | . . . . . . . Derelict Logs Recovered 1 | . . 1 . . . . Drone Launches . | . . . . . . . Drone Recoveries . | . . . . . . . Exploration | -11 -10 -10 -9 -9 -8 -8 ------------- Run | Scr Mat Min Mat Min Mat Sto Turns Passed 1769 | 19 429 799 292 19 57 154 Spaces Moved 1088 | 3 235 487 176 38 53 96 Core 83 | . . . 25 38 16 4 Treads . | . . . . . . . Legs 876 | 3 235 487 151 . . . Wheels . | . . . . . . . Hover 129 | . . . . . 37 92 Flight . | . . . . . . . Fastest Speed 50 | 120 120 150 50 50 50 50 Average Speed 132 | 120 140 150 114 50 78 116 Slowest Speed 350 | 120 150 150 350 50 120 120 Overloaded Moves . | . . . . . . . Propulsion Burnouts . | . . . . . . . Robots Hopped . | . . . . . . . Cave-ins Triggered . | . . . . . . . Exploration Rate (%) 28 | 2 41 85 27 15 8 24 Regions Visited 6 Branch Regions 3 Pre-discovered Areas 1 | . . 1 . . . . Known Exits Taken 1 | . . . . . 1 . Unknown Exits Taken 5 | 1 1 1 1 1 . . Scrap Searched 1 | . . 1 . . . . Spaces Dug . | . . . . . . . Terrain Destroyed 14 | . . . 6 . . 8 Melee . | . . . . . . . Projectile . | . . . . . . . AOE 14 | . . . 6 . . 8 Terrain Rammed . | . . . . . . . Walls Destroyed . | . . . . . . . Machines Disabled . | . . . . . . . Actions | -11 -10 -10 -9 -9 -8 -8 --------- Run | Scr Mat Min Mat Min Mat Sto Total 1275 | 8 292 528 227 37 66 117 Wait 32 | . 11 7 6 . 7 1 Move 1082 | 2 234 486 175 37 52 96 Hop . | . . . . . . . Pick Up 12 | . 6 4 2 . . . Fast Attach 24 | . 3 5 6 . 6 4 Attach 3 | . . . 3 . . . Detach 5 | . . 1 3 . . 1 Swap 6 | . 4 1 1 . . . Drop 22 | . 7 9 3 . 1 2 Fire 77 | 6 26 15 24 . . 6 Melee 8 | . . . 1 . . 7 Ram 3 | . . . 3 . . . Kick 1 | . 1 . . . . . Crush . | . . . . . . . Escape Stasis . | . . . . . . . Rewire . | . . . . . . . Trap . | . . . . . . . Miscellaneous . | . . . . . . . Route ------- -11/Scrapyard -10/Materials (discovered 2 exits: *Mat / *Min) -10/Mines (discovered 2 exits: *Mat x2) -9/Materials (discovered 2 exits: [Mat] / [*Min]) -9/Mines -8/Materials -8/Storage History --------- Turn | Location | Event 15 | -11/Scrapyard | Discovered new exit (range 2) 20 | -11/Scrapyard | Entered Materials 246 | -10/Materials | Discovered new exit (range 12) 317 | -10/Materials | Build established: Mutant 404 | -10/Materials | Discovered new exit (range 11) 449 | -10/Materials | Entered Mines 497 | -10/Mines | Discovered new exit (range 8) 518 | -10/Mines | Learned location of Storage (-8) 551 | -10/Mines | Assisted by bots powering up and referring to "LRC-V3" 635 | -10/Mines | Discovered new exit (range 12) 707 | -10/Mines | Learned Materials emergency access door positions 741 | -10/Mines | Met a Derelict who couldn't figure out how to use a Trap Extractor 1010 | -10/Mines | Joined a pair of Derelicts in attacking an 0b10 outpost 1248 | -10/Mines | Entered Materials 1248 | -9/Materials | Accompanied by 3 allies 1248 | -9/Materials | Evolved 2 slots: Propulsion x2 1394 | -9/Materials | Discovered new exit (range 17) 1524 | -9/Materials | Core integrity fell below 50% 1532 | -9/Materials | Discovered new exit (range 15) 1533 | -9/Materials | Core integrity fell below 20% 1540 | -9/Materials | Entered Mines 1550 | -9/Mines | Lost 10 parts (6n4w) 1556 | -9/Mines | Discovered new exit (range 9) 1559 | -9/Mines | Entered Materials 1559 | -8/Materials | Evolved 2 slots: Weapon x2 1594 | -8/Materials | Discovered new exit (range 11) 1614 | -8/Materials | Identified exit to Storage 1616 | -8/Materials | Entered Storage 1763 | -8/Storage | Core integrity fell below 50% 1767 | -8/Storage | Core integrity fell below 20% 1770 | -8/Storage | Destroyed by G-47 Trooper with Particle Gun Last Messages --------------- 01718_ Tractor Beam melted. 01718_ R-06 Scavenger destroyed. 01721_ Acquired 10 matter. 01725_ Acquired Adv. Beam Rifle. 01726_ Dropped Axe. 01734_ Triggered Alarm Trap. 01734_ An alarm sounds. 01734_ ALERT: Alarm triggered, dispatching investigation squad. 01739_ U-05 Engineer lays Concrete. 01746_ U-05 Engineer destroyed. 01751_ Lgt. Nuclear Core destroyed. 01756_ Adv. Beam Rifle destroyed. 01757_ Imp. Hover Unit destroyed. 01757_ Adv. Beam Rifle destroyed. 01762_ Scythe destroyed. 01765_ Dropped Imp. Grenade Launcher. 01765_ Acquired Imp. Grenade Launcher. 01769_ G-47 Trooper destroyed. 01769_ Destroyed Lgt. Nuclear Core. 01769_ Component Storage disabled. Map ----- +----------------------------------------------------+ | ??????????????????????????????????? | | ??????????????????????????????????? | | ??????????????????????????????????? | | ??????????????????????????????????? | | ???????????? ???????????????????? | | ???????????? ??????????????????? | | ???????????? ??????????????????? | | ???????????? #??????????????????? | | ???????????? #??????????????????? | | ???????????? #??????????????????? | | ???????????? #??????????????????? | | ???????????# #??????????????????? | | ???????????# +??????????????????? | | ???????????# #??????????????????? | | ???????????# #??????????????????? | | ???????????# #??????????????????? | | ???????????# #??????????????????? | | ???????????# #??????????????????? | | ???????????# #??????????????????? | | ???????????# #??????????????????? | | ???????????# #??????????????????? | | ????######## ##?????????????????? | | ????"" # #?????????????????? | | ?? "Y" r ####### ##????????? | | ?# """ gg #????????? | | ?# """@ %YY +????????? | | ?# ]] "" !| #????????? | | ?? ]] """ !% ####+###+#????????? | | ?# ]] """ # ! # ???????????? | | # + ## "???########## | | ?####+######## # ] "???# ! | | ?????????????# ## ????# ] ]?? | | ?????????????# ## ????# ???? | | ?????????????# ## ?????# ! ?????? | | ?????????????#/## ?????#+##+##### | | ?????????????#!## ??????# | | ?????????????#%## ??????# | | ???????#######[##+######## | | ????# ![= %=%=% | | ???????############################ | | ??????????????????????????????????? | | ??????????????????????????????????? | | ??????????????????????????????????? | | | | | | | | | | | | | | | +----------------------------------------------------+ Best States ------------- Heat Dissipation 31 Energy Generation 14 Energy Capacity 365 Matter Stores 370 Matter Capacity 500 Sight Range 16 Robot Scan Range 13 Terrain Scan Range 20 Terrain Scan Density 60 Evasion (%) 53 Targeting Accuracy 5 Item Schematics ----------------- Imp. Grenade Launcher | -9/Materials | Scanalyzed Robot Schematics ------------------ None Fabricated ------------ Nothing Alien Tech Used ----------------- None Achievements -------------- Close Call Challenges ------------ None Game ------ Seed DamperLaserNetwork Manual? 0 Play Time 00:31:12 Cumulative 37.0 hours Start 2021.06.02 @ 19:06:40 End 2021.06.25 @ 21:34:06 Sessions 4 Manual Loads 0 Difficulty Rogue Special Mode None Game No. 45 Rogue 41 Adventurer 0 Explorer 4 Win Type - Total 0 Types 0/0/0/0/0/0/0/0/0 Lore% 16 Gallery% 27 Achievement% 23 Wizard Run 0 Options --------- ASCII 0 Keyboard 1 Movement Arrows Keybinds 0 Fullscreen 2 Font 24/Terminus Map View 113x50 Tactical HUD 1 Map Filters NONE Filters NONE Steam 1 RUN: 2e469e76-7625-4d88-837e-a9856a147f52